bitfinex/quotes_ETHUSD_20250314
["timestamp","ask_amount","ask_price","bid_price","bid_amount"]
[1741962738871,11.65727,1919.3,1918.9,11.464643]
[1741962739066,5.21051,1919.2,1918.9,5.21112]
[1741962739379,5.21051,1919.2,1918.8,10.42293]
[1741962739582,5.21051,1919.2,1918.8,5.21151]
[1741962739777,5.21051,1919.2,1918.8,10.42292]
[1741962739938,5.98839,1919.4,1918.9,5.21121]
[1741962740152,12.43439,1919.4,1919.0,5.21093]
[1741962740356,0.7784,1919.4,1918.9,0.521121]
[1741962740684,0.7784,1919.4,1919.3,5.21023]
[1741962741181,7.2437,1919.7,1919.3,10.42033]
[1741962741480,0.7977,1919.7,1919.4,5.20977]
[1741962741634,0.7977,1919.7,1919.6,5.20941]
[1741962741967,0.7977,1919.7,1918.8,3.521185]
[1741962742276,5.20987,1919.5,1919.1,5.21067]
[1741962742442,6.00707,1919.7,1919.1,5.21067]
[1741962742649,5.2098,1919.5,1919.1,5.21068]
[1741962742876,6.445,1919.6,1919.0,5.21077]
[1741962743117,11.65442,1919.6,1918.9,5.21131]
[1741962743323,0.7977,1919.7,1919.5,5.20958]
[1741962743610,0.7977,1919.7,1919.4,5.20993]
[1741962744008,5.21369915,1919.9,1919.4,5.20993]
[1741962744009,0.00507915,1919.9,1919.7,5.20889]
[1741962744167,0.00507915,1919.9,1919.8,5.20887]
[1741962744362,0.00507915,1919.9,1919.8,6.25585471]
[1741962744767,5.2159,1920.9,1920.8,5.20616]
[1741962744768,0.01,1920.9,1920.8,5.20616]
[1741962745063,0.01,1920.9,1920.0,0.55]
[1741962745064,0.01,1920.9,1920.7,5.20634]
[1741962747464,11.65155,1920.3,1919.2,6.27895872]
[1741962747662,0.8276,1920.1,1919.8,5.20868]
[1741962747961,0.8276,1920.1,1919.2,0.59778145]
[1741962747962,5.20866,1919.9,1919.4,5.20983]
[1741962748157,5.20866,1919.9,1919.4,5.20973]
[1741962748391,0.520866,1919.9,1919.5,5.20953]
[1741962748610,6.03583,1920.1,1919.6,5.2092]
[1741962748771,0.8276,1920.1,1919.6,0.05209195]
[1741962748962,5.20849,1920.0,1919.2,0.59778145]
[1741962749165,5.20863,1919.9,1919.5,5.20968]
[1741962749382,0.8276,1920.1,1919.0,5.21104]
[1741962749383,11.65104,1919.8,1919.0,5.21104]
[1741962749584,0.8276,1920.1,1919.5,5.20969]
[1741962749785,0.8276,1920.1,1919.3,7.90912578]
[1741962750000,0.7523,1920.4,1919.7,5.20914]
[1741962750184,0.7523,1920.4,1920.0,5.20807]
[1741962750361,0.7523,1920.4,1920.1,5.20782]
[1741962751104,0.804,1920.7,1920.3,5.20733]
[1741962751307,5.20673,1920.6,1920.1,5.20779]
[1741962751613,0.804,1920.7,1920.4,5.20724]
[1741962751780,0.804,1920.7,1920.4,5.20719]
[1741962751979,6.01046,1920.7,1920.3,5.20733]
[1741962752178,6.01049,1920.7,1920.3,5.20733]
[1741962752611,5.20699,1920.5,1920.1,5.20804]
[1741962752808,0.804,1920.7,1919.8,5.20878]
[1741962752989,6.01056,1920.7,1920.3,5.20739]
[1741962753190,0.804,1920.7,1920.4,5.20709]
[1741962753608,6.01056,1920.7,1919.7,15.68989793]
[1741962753808,7.244,1920.7,1920.2,5.20765]
[1741962754010,13.334,1920.7,1919.8,5.20862]
[1741962754197,0.8183,1919.8,1919.5,5.20955]
[1741962754513,0.8183,1919.8,1919.6,5.2093]
[1741962754711,0.8183,1919.8,1919.6,5.20931]
[1741962755011,0.8183,1920.1,1919.6,1.041879]
[1741962755180,0.8183,1920.1,1919.7,5.26099671]
[1741962755373,0.8183,1920.1,1919.8,5.20874]
[1741962755607,0.8183,1920.1,1919.7,5.20891]
[1741962755790,6.02652,1920.1,1919.6,5.2094]
[1741962755991,6.02652,1920.1,1919.7,5.20899]
[1741962756203,0.8183,1920.1,1919.7,5.20914]
[1741962756418,5.2087,1919.9,1919.1,5.731664]
[1741962756587,5.20886,1919.9,1919.1,5.731704]
[1741962756785,0.8183,1920.1,1919.5,5.20962]
[1741962756978,0.8183,1920.1,1919.9,5.20839]
[1741962757179,0.8183,1920.1,1919.8,5.20886]
[1741962757480,0.8183,1920.1,1919.4,5.20971]
[1741962757699,0.8183,1920.1,1919.9,5.20846]
[1741962757899,0.8183,1920.1,1920.0,5.20833]
[1741962758176,0.8183,1920.1,1919.9,5.20845]
[1741962758381,0.8183,1920.1,1920.0,5.20833]
[1741962758811,6.439,1920.5,1919.7,5.20914]
[1741962759017,6.439,1920.5,1920.3,5.20738]
[1741962759309,0.8317,1920.6,1920.4,5.20724]
[1741962759476,7.2591,1920.9,1920.6,5.20668]
[1741962759681,5.20644,1920.7,1920.3,5.20746]
[1741962759905,5.2068,1920.6,1920.2,5.20767]
[1741962760099,5.20616,1920.8,1920.4,5.20711]
[1741962760310,0.8201,1920.9,1919.9,0.05207068]
[1741962760513,6.0262,1920.9,1920.4,5.20699]
[1741962760810,6.02618,1920.9,1920.5,5.20682]
[1741962761108,0.8201,1920.9,1920.8,5.20616]
[1741962761289,0.01,1920.9,1920.8,5.20616]
[1741962761886,0.01,1920.9,1920.8,5.25821604]
[1741962762110,0.01,1920.9,1920.8,6.30467064]
[1741962762316,0.01,1920.9,1920.8,1.0464546]
[1741962762519,0.01,1920.9,1920.8,5.20616]
[1741962763805,0.01,1920.9,1920.7,5.20633]
[1741962763999,0.01,1920.9,1920.7,5.20625]
[1741962764207,0.01,1920.9,1920.6,5.20666]
[1741962764514,0.01,1920.9,1920.8,5.20616]
[1741962765082,0.01,1920.9,1920.7,5.20643]
[1741962765277,0.01,1920.9,1920.8,5.20616]
[1741962765516,0.01,1920.9,1920.3,8.60112783]
[1741962765719,0.8217,1920.8,1920.5,5.20685]
[1741962765887,0.8217,1920.8,1920.7,5.20643]
[1741962766094,0.01,1920.9,1920.8,5.20616]
[1741962766292,0.01,1920.9,1920.7,5.20643]
[1741962766497,0.01,1920.9,1920.8,5.20616]
[1741962766694,5.20617,1920.8,1920.4,5.20717]
[1741962766898,5.20617,1920.8,1920.4,10.41426]
[1741962767121,5.21589,1920.9,1920.5,5.20696]
[1741962767424,5.20645,1920.7,1920.3,5.20738]
[1741962767626,0.7792,1920.6,1919.9,1.26031559]
[1741962767809,5.20756,1920.3,1919.6,5.20941]
[1741962768016,0.8179,1920.2,1919.1,4.90912578]
[1741962768216,3.8192,1920.1,1919.2,0.49091258]
[1741962768411,9.9092,1920.1,1919.1,5.2105]
[1741962768586,0.8192,1919.6,1919.4,5.20984]
[1741962768786,6.435,1919.8,1919.7,5.20914]
[1741962768986,0.8192,1919.9,1919.1,5.21077]
[1741962769188,7.2628,1920.2,1920.0,5.2082]
[1741962769400,0.8278,1920.2,1919.8,5.20876]
[1741962769600,0.8278,1920.2,1919.6,0.05208007]
[1741962769811,6.03573,1920.2,1919.7,5.20897]
[1741962769991,6.03573,1920.2,1919.7,10.938897]
[1741962770191,6.03573,1920.2,1919.8,5.20887]
[1741962770398,0.8278,1920.2,1919.8,5.20877]
[1741962770603,6.03578,1920.2,1919.8,5.20877]
[1741962770923,0.8278,1920.2,1919.7,5.729967]
[1741962771122,5.20833,1920.0,1919.6,5.2094]
[1741962771323,6.03579,1920.2,1919.7,5.20891]
[1741962771617,6.03579,1920.2,1919.8,5.20884]
[1741962771800,6.0356,1920.2,1919.8,5.20884]
[1741962772000,12.526,1920.5,1919.5,5.20969]
[1741962772236,0.8104,1920.1,1919.3,0.39578971]
[1741962772526,0.8104,1920.1,1919.9,5.20848]
[1741962772727,7.223,1920.4,1919.9,0.57292904]
[1741962772929,7.223,1920.4,1920.1,5.20805]
[1741962772930,0.787,1920.4,1920.1,5.20805]
[1741962773221,0.787,1920.4,1919.7,3.0]
[1741962773222,0.787,1920.4,1920.2,5.2077]
[1741962773425,0.787,1920.4,1920.2,10.41533]
[1741962773622,0.787,1920.4,1920.3,5.20751]
[1741962773827,6.436,1920.6,1920.3,5.20751]
[1741962774009,6.436,1920.6,1920.2,10.41546]
[1741962774187,6.436,1920.6,1920.3,5.20748]
[1741962774586,5.20686,1920.6,1920.2,10.41542]
[1741962774821,12.46481,1920.7,1920.3,5.20751]
[1741962775027,12.46481,1920.7,1920.3,10.41491]
[1741962775333,0.01,1920.9,1920.5,5.20687]
[1741962775630,0.01,1920.9,1920.6,5.20661]
[1741962776491,5.21589,1920.9,1920.6,5.20661]
[1741962776687,5.2062,1920.8,1920.1,1.04564176]
[1741962776919,5.20682,1920.6,1920.1,5.2079]
[1741962777134,0.823,1920.3,1919.8,5.20866]
[1741962777434,5.20825,1920.1,1919.6,5.20927]
[1741962777720,6.03056,1920.3,1919.4,1.01891342]
[1741962777890,0.823,1920.3,1919.9,5.20838]
[1741962778090,0.823,1920.3,1920.0,5.20832]
[1741962778518,6.03053,1920.3,1919.9,5.20858]
[1741962778733,5.20788,1920.2,1919.8,10.4175]
[1741962778936,5.20788,1920.2,1919.8,10.41741]
[1741962779221,5.20817,1920.1,1919.7,5.20898]
[1741962779519,5.20842,1920.0,1919.6,5.20934]
[1741962779720,5.20838,1920.0,1919.6,5.20934]
[1741962779923,0.7838,1919.9,1919.6,5.20932]
[1741962780126,0.7838,1919.9,1919.7,5.20908]
[1741962780430,6.434,1919.8,1919.1,5.21065]
[1741962780632,6.434,1919.8,1918.9,5.21126]
[1741962780633,6.00432,1919.4,1918.9,5.21126]
[1741962780835,0.7941,1919.4,1918.4,5.21267]
[1741962781038,0.7941,1919.4,1919.1,5.21065]
[1741962781200,0.7941,1919.4,1919.3,5.21023]
[1741962781535,0.7941,1919.4,1919.1,5.731825]
[1741962781732,0.7941,1919.4,1919.3,5.21023]
[1741962781932,7.2372,1919.7,1919.5,5.20965]
[1741962782099,0.8022,1920.0,1919.7,5.20895]
[1741962782433,0.8022,1920.0,1919.8,5.2088]
[1741962782619,0.8022,1920.0,1919.9,5.2086]
[1741962783029,0.8022,1920.0,1919.8,5.20874]
[1741962783222,0.8022,1920.0,1919.8,5.20866]
[1741962783535,0.8022,1920.0,1919.8,5.20875]
[1741962783836,17.9802,1920.3,1919.8,1.041779]
[1741962784007,0.7502,1920.3,1920.1,5.20788]
[1741962784359,0.7502,1920.6,1920.3,5.20739]
[1741962784519,0.7502,1920.6,1919.5,11.64466]
[1741962784712,0.7502,1920.1,1919.8,5.20874]
[1741962784914,5.95845,1920.1,1919.7,5.20913]
[1741962785110,1.346045,1920.1,1919.5,5.2096]
[1741962785446,1.346045,1920.1,1920.0,5.20833]
[1741962785447,0.7502,1920.1,1920.0,5.20833]
[1741962785615,0.7704,1920.4,1920.1,5.20793]
[1741962786155,0.7704,1920.4,1920.3,5.20751]
[1741962786509,6.435,1920.6,1920.4,5.20703]
[1741962787038,6.435,1920.6,1919.9,5.20837]
[1741962787252,6.435,1920.6,1920.2,5.20769]
[1741962787405,6.435,1920.6,1920.3,5.20732]
[1741962787601,0.01,1920.9,1919.8,5.20887]
[1741962787843,0.01,1920.9,1920.7,5.20631]
[1741962788046,0.01,1920.9,1920.1,5.20806]
[1741962788253,0.01,1920.9,1920.5,5.20681]
[1741962788411,0.7751,1920.6,1919.9,6.434]
[1741962788611,0.7751,1920.6,1920.4,5.20706]
[1741962788921,5.98181,1920.6,1920.1,5.20804]
[1741962789157,5.98181,1920.6,1920.1,5.20788]
[1741962789457,0.7751,1920.6,1920.3,5.20748]
[1741962789661,0.7751,1920.6,1920.4,5.20714]
[1741962789814,5.98182,1920.6,1920.2,5.20777]
[1741962790153,1.893926,1920.6,1920.2,5.20759]
[1741962790350,1.893926,1920.6,1920.3,5.2075]
[1741962790649,0.7751,1920.6,1920.0,5.26034301]
[1741962790857,0.7751,1920.6,1920.5,5.20697]
[1741962791056,0.7751,1920.6,1920.4,5.20715]
[1741962791270,0.7751,1920.6,1920.2,5.20767]
[1741962791561,0.7751,1920.6,1920.3,5.20745]
[1741962791915,5.98182,1920.6,1920.2,5.20767]
[1741962792121,5.208,1920.2,1919.7,5.20911]
[1741962792320,0.8047,1920.1,1919.6,0.76560356]
[1741962792556,0.8047,1920.1,1919.7,5.20904]
[1741962792717,0.8047,1920.1,1919.6,5.97495356]
[1741962792920,5.20874,1919.9,1919.6,0.76560356]
[1741962793265,0.8292,1919.8,1919.5,5.20956]
[1741962793470,0.8292,1919.8,1919.6,5.2092]
[1741962793620,0.8292,1919.8,1919.6,5.73012]
[1741962793825,11.64199,1920.2,1920.0,5.20833]
[1741962793826,0.8292,1920.1,1920.0,5.20833]
[1741962794231,0.7971,1920.4,1920.3,5.20751]
[1741962794429,0.7971,1920.7,1920.6,5.2067]
[1741962794920,0.01,1920.9,1920.6,10.41317]
[1741962795157,0.01,1920.9,1920.7,5.20634]
[1741962795362,0.01,1920.9,1920.6,5.2066]
[1741962795565,0.01,1920.9,1920.6,5.2065]
[1741962795765,5.20621,1920.8,1920.4,5.20703]
[1741962796063,5.21616,1920.9,1920.5,5.20682]
[1741962796267,0.01,1920.9,1920.0,5.20809]
[1741962796445,0.01,1920.9,1920.8,5.20616]
[1741962796766,0.01,1920.9,1920.7,5.20619]
[1741962797735,0.01,1920.9,1920.8,5.20616]
[1741962798134,0.01,1920.9,1920.6,5.20669]
[1741962798463,0.01,1920.9,1920.7,10.41265]
[1741962798664,0.01,1920.9,1920.8,5.20616]
[1741962800333,0.01,1920.9,1920.7,5.20623]
[1741962800837,0.01,1920.9,1920.6,5.20669]
[1741962801050,0.01,1920.9,1920.3,5.2075]
[1741962801250,0.01,1920.9,1920.7,10.4125]
[1741962801449,0.01,1920.9,1920.8,5.20616]
[1741962804078,2e-06,1920.9,1920.8,5.20616]
[1741962804284,2e-06,1920.9,1920.8,13.16732971]
[1741962804490,2e-06,1920.9,1920.8,13.11528578]
[1741962804690,2e-06,1920.9,1920.8,5.20616]
[1741962804851,2e-06,1920.9,1920.8,5.2582082]
[1741962805043,2e-06,1920.9,1920.8,13.16733398]
[1741962805243,2e-06,1920.9,1920.8,14.95266118]
[1741962805438,2e-06,1920.9,1920.8,15.0478596]
[1741962807378,2e-06,1920.9,1920.8,5.20616]
[1741962807539,2e-06,1920.9,1920.8,10.16733397]
[1741962807735,2e-06,1920.9,1920.8,13.2104842]
[1741962808178,2e-06,1920.9,1920.8,19.3704842]
[1741962808386,0.01,1922.4,1921.6,4.90912578]
[1741962808591,8.8e-06,1922.5,1922.4,5.20183]
[1741962808889,8.8e-06,1922.5,1922.4,5.25383204]
[1741962809382,8.8e-06,1922.5,1922.4,5.20183]
[1741962809586,8.8e-06,1922.5,1922.4,6.885123]
[1741962810088,8.8e-06,1922.5,1922.2,5.2023]
[1741962810287,8.8e-06,1922.5,1922.3,5.20208]
[1741962810489,8.8e-06,1922.5,1921.9,5.20292]
[1741962810700,8.8e-06,1922.5,1922.1,5.20245]
[1741962810912,8.8e-06,1922.5,1922.3,5.20188]
[1741962811112,8.8e-06,1922.5,1922.1,5.2025]
[1741962811401,5.2016488,1922.5,1921.9,10.40609]
[1741962811612,5.99309,1922.3,1921.8,5.20342]
[1741962811805,5.99309,1922.3,1921.8,5.20334]
[1741962811965,0.52016488,1922.4,1921.2,10.11413578]
[1741962811966,0.7908,1921.9,1921.5,5.20402]
[1741962812302,0.7908,1921.9,1921.5,10.40816]
[1741962812491,0.7908,1921.9,1921.6,5.20396]
[1741962812794,0.7635,1922.2,1921.6,1.040798]
[1741962813094,0.7635,1922.2,1921.6,5.20399]
[1741962813297,5.96599,1922.2,1921.7,5.20362]
[1741962813591,0.7635,1922.2,1921.9,5.20304]
[1741962813792,0.7635,1922.2,1921.8,5.20345]
[1741962813968,0.7635,1922.2,1922.1,5.20264]
[1741962814162,0.7531,1922.4,1922.1,5.20252]
[1741962814417,0.7531,1922.4,1922.1,5.2026]
[1741962814591,0.7531,1922.4,1922.2,5.20237]
[1741962814795,8.8e-06,1922.5,1922.3,5.25411642]
[1741962815111,8.8e-06,1922.5,1922.3,0.05200626]
[1741962815270,8.8e-06,1922.5,1922.2,5.20215]
[1741962815466,0.8255,1922.4,1922.0,5.20274]
[1741962815776,8.8e-06,1922.5,1921.6,1.02070519]
[1741962815777,0.8255,1921.9,1921.6,1.02070519]
[1741962816000,6.02882,1921.9,1921.4,10.40871]
[1741962816202,5.20358,1921.8,1921.4,5.20435]
[1741962816364,5.20296,1922.0,1921.6,5.20389]
[1741962816569,5.20328,1921.9,1921.5,5.20423]
[1741962816808,6.02802,1922.2,1921.6,0.05203377]
[1741962816993,7.2505,1922.2,1921.8,5.20344]
[1741962817189,7.2505,1922.2,1921.7,5.20358]
[1741962817412,7.2505,1922.2,1921.8,5.20333]
[1741962817715,12.45288,1922.2,1921.6,5.20373]
[1741962817868,12.45294,1922.2,1921.7,5.20345]
[1741962818073,7.2505,1922.2,1921.8,5.20328]
[1741962818298,0.8255,1922.2,1921.9,5.20303]
[1741962818508,0.8255,1922.2,1921.6,5.724223]
[1741962818831,5.20319,1921.9,1921.5,5.2042]
[1741962819033,6.9052088,1922.5,1921.7,5.20372]
[1741962819237,5.20214,1922.3,1921.9,5.20293]
[1741962819539,5.20238,1922.2,1921.7,5.20366]
[1741962819729,5.20333,1921.9,1921.5,5.20419]
[1741962820135,10.40622,1922.0,1921.5,5.20399]
[1741962820304,6.03231,1922.1,1921.3,5.20471]
[1741962820629,0.8295,1922.1,1921.4,5.77690153]
[1741962820824,0.8295,1922.1,1921.7,5.20351]
[1741962821027,6.03216,1922.1,1921.7,5.20351]
[1741962821199,0.8295,1922.1,1921.8,5.20321]
[1741962821401,0.7534,1922.4,1922.1,5.2024]
[1741962821800,5.2015988,1922.5,1922.4,5.20183]
[1741962821801,8.8e-06,1922.5,1922.4,5.20183]
[1741962822031,8.8e-06,1922.5,1922.4,6.242223]
[1741962822192,8.8e-06,1922.5,1922.3,5.20205]
[1741962822397,8.8e-06,1922.5,1922.2,5.20234]
[1741962822592,8.8e-06,1922.5,1921.9,5.20307]
[1741962822816,8.8e-06,1922.5,1922.1,5.2024]
[1741962823014,5.2015788,1922.5,1922.1,5.2024]
[1741962823228,8.8e-06,1922.5,1922.2,5.20224]
[1741962823406,5.2016288,1922.5,1922.1,5.2024]
[1741962823604,5.20246,1922.2,1921.4,0.520471]
[1741962823803,5.20237,1922.2,1921.6,5.20384]
[1741962824004,5.20336,1921.9,1921.5,5.20415]
[1741962824302,12.38077,1922.2,1921.3,5.20463]
[1741962824303,5.20385,1921.7,1921.3,5.20463]
[1741962824505,5.20264,1922.1,1921.1,5.20512]
[1741962824506,0.7887,1921.6,1921.1,5.20512]
[1741962824708,5.20508,1921.2,1920.9,5.20569]
[1741962824911,5.99391,1921.2,1920.9,0.520569]
[1741962825230,0.7887,1921.2,1920.9,5.20575]
[1741962825431,5.20536,1921.1,1920.7,5.2062]
[1741962825608,5.20536,1921.1,1920.6,5.20669]
[1741962825609,5.20575,1921.0,1920.6,5.20669]
[1741962825808,5.20633,1920.8,1920.2,5.20764]
[1741962826022,0.7887,1920.6,1920.3,5.20751]
[1741962826207,0.7887,1920.6,1920.4,0.520751]
[1741962826408,0.7887,1920.6,1919.9,4.90912578]
[1741962826732,5.20628,1920.8,1920.3,5.20734]
[1741962827035,0.7553,1920.9,1920.6,5.2066]
[1741962827399,0.7553,1920.9,1920.6,0.05206044]
[1741962827592,1.351405,1920.9,1920.4,5.2071]
[1741962827824,0.7835,1921.2,1920.8,5.20606]
[1741962828039,0.7835,1921.5,1921.2,5.20495]
[1741962828200,5.20494,1921.3,1920.3,11.36727]
[1741962828529,0.7931,1920.9,1920.5,5.20673]
[1741962828729,5.20669,1920.7,1920.2,5.20765]
[1741962828930,5.20659,1920.7,1920.3,5.2073]
[1741962829243,6.04126,1920.1,1919.7,5.20894]
[1741962829525,5.20833,1920.0,1919.5,5.20949]
[1741962829732,5.20878,1919.9,1919.5,5.730439]
[1741962829944,10.41798,1919.8,1919.5,0.520949]
[1741962830098,10.41798,1919.8,1919.3,10.42008]
[1741962830099,5.20888,1919.8,1919.4,5.20994]
[1741962830499,6.04128,1920.1,1918.9,5.21746657]
[1741962830500,0.7616,1919.6,1918.9,5.21746657]
[1741962830719,5.97129,1919.5,1918.9,0.00630657]
[1741962831035,0.7616,1919.1,1918.9,0.00630657]
[1741962831533,0.7616,1919.1,1918.9,5.21735657]
[1741962831701,0.7616,1919.1,1918.9,5.21755657]
[1741962831906,0.7616,1919.1,1918.9,10.42869657]
[1741962832098,0.7523,1919.5,1919.2,5.21035]
[1741962832297,0.7523,1919.5,1919.4,5.20996]
[1741962832535,0.7523,1920.5,1919.4,4.90912578]
[1741962832699,0.7523,1920.5,1920.2,5.20759]
[1741962832895,5.20745,1920.4,1919.8,5.20871]
[1741962833119,5.20789,1920.2,1919.8,1.172571]
[1741962833322,5.20873,1919.9,1919.5,5.20949]
[1741962833632,0.7777,1919.8,1919.5,5.20967]
[1741962833811,0.7777,1919.8,1919.6,5.20926]
[1741962834336,0.7777,1919.8,1919.5,5.20958]
[1741962834720,0.7777,1919.8,1919.3,5.21023]
[1741962834911,0.7777,1919.8,1919.7,5.20914]
[1741962835509,0.7603,1920.1,1919.9,5.20844]
[1741962835798,0.7603,1920.1,1919.4,5.20972]
[1741962836009,0.7603,1920.1,1919.9,5.20836]
[1741962836208,0.7603,1920.1,1919.8,5.20873]
[1741962836622,0.7687,1920.6,1920.2,5.20764]
[1741962836984,5.97559,1920.6,1920.2,5.20759]
[1741962837134,0.7687,1920.6,1920.4,5.20716]
[1741962837433,0.7687,1920.6,1920.3,5.20745]
[1741962837635,0.7687,1920.6,1920.2,0.0520721]
[1741962837831,0.7687,1920.6,1920.2,5.73357321]
[1741962838052,5.20834,1920.0,1919.6,6.24671455]
[1741962838203,0.7687,1920.1,1919.5,5.20969]
[1741962838408,0.7687,1920.1,1919.3,5.731023]
[1741962838615,6.8587,1920.1,1919.3,0.521023]
[1741962838839,6.01494,1919.6,1919.2,5.21036]
[1741962839028,6.01494,1919.6,1919.4,5.20993]
[1741962839029,0.8055,1919.6,1919.4,5.20993]
[1741962839227,0.8055,1919.6,1919.2,5.21028]
[1741962839545,0.8055,1919.6,1919.3,5.21019]
[1741962839839,0.8055,1919.6,1919.1,5.21063]
[1741962840043,5.20969,1919.5,1919.0,5.21103]
[1741962840208,5.20969,1919.5,1919.0,5.21104]
[1741962840525,5.21096,1919.1,1918.9,0.00630657]
[1741962840702,6.59244,1919.0,1918.9,0.00630657]
[1741962840904,0.8314,1918.6,1917.8,5.30497346]
[1741962841108,0.8314,1918.9,1918.8,5.21159]
[1741962841640,11.30028,1919.3,1918.7,5.21179]
[1741962841641,0.8332,1919.3,1918.7,5.2117]
[1741962841825,0.8332,1919.3,1918.9,5.21109]
[1741962842029,0.8332,1919.3,1919.2,5.2105]
[1741962842227,0.8332,1919.7,1919.2,0.05210261]
[1741962842538,0.8332,1919.7,1919.2,5.21033]
[1741962842539,5.20942,1919.6,1919.2,5.21033]
[1741962842719,0.7925,1919.3,1919.0,5.21089]
[1741962842915,5.21072,1919.2,1918.7,5.2117]
[1741962843106,6.00283,1919.3,1918.9,5.21113]
[1741962843311,0.7925,1919.3,1918.2,3.0]
[1741962843508,0.7925,1919.3,1918.7,5.21173]
[1741962843509,5.21082,1919.1,1918.7,5.21173]
[1741962843707,5.99879,1918.8,1918.4,10.425]
[1741962843929,13.4742,1918.8,1918.0,5.21361]
[1741962844135,6.597,1918.8,1917.8,4.90912578]
[1741962844331,0.7872,1918.6,1917.8,5.2143]
[1741962844532,0.7872,1918.6,1918.5,5.2124]
[1741962844737,7.4277,1918.9,1918.8,5.21159]
[1741962844907,7.4277,1918.9,1918.7,5.21177]
[1741962845112,7.4277,1918.9,1918.7,5.21183]
[1741962845641,7.4277,1918.9,1918.5,5.21233]
[1741962845940,7.4277,1918.9,1918.4,5.21267]
[1741962846140,5.21165,1918.8,1918.3,5.734232]
[1741962846448,0.7917,1918.8,1918.2,5.21307]
[1741962846612,0.7917,1918.8,1918.4,5.21264]
[1741962846814,0.7917,1918.8,1918.6,5.21198]
[1741962847010,0.7917,1918.8,1918.7,5.21186]
[1741962847317,6.8682,1919.1,1919.0,5.21104]
[1741962847545,0.7782,1919.5,1919.3,5.2101]
[1741962847742,0.7782,1919.5,1919.4,5.20996]
[1741962847916,0.7782,1919.5,1919.2,5.21049]
[1741962848112,0.7782,1919.5,1919.1,5.21055]
[1741962848352,0.7782,1919.5,1919.2,5.21037]
[1741962848512,0.7782,1919.5,1919.3,5.21018]
[1741962848715,0.7782,1919.5,1919.3,5.21009]
[1741962849014,0.7906,1919.8,1919.7,5.209]
[1741962849212,5.20806,1920.1,1919.4,5.26205835]
[1741962849213,0.7906,1920.1,1919.9,5.20855]
[1741962849669,0.7906,1920.1,1920.0,5.20833]
[1741962849829,0.7906,1920.1,1919.8,5.20885]
[1741962850016,5.99867,1920.1,1919.7,5.20908]
[1741962850348,5.99867,1920.1,1919.6,5.20923]
[1741962850349,5.20834,1920.0,1919.6,5.20923]
[1741962850517,5.9988,1920.1,1919.7,5.20895]
[1741962850712,1.390467,1920.1,1919.2,5.2105]
[1741962850920,1.390467,1920.1,1919.6,5.20919]
[1741962850921,5.20834,1920.0,1919.6,5.20919]
[1741962851127,5.99869,1920.1,1919.4,5.20996]
[1741962851352,0.7906,1920.1,1919.9,5.20851]
[1741962851642,0.7906,1920.1,1920.0,5.20833]
[1741962852820,0.7789,1920.6,1920.2,5.20765]
[1741962853015,0.7789,1920.6,1920.0,5.20832]
[1741962853247,5.20715,1920.5,1920.1,5.20794]
[1741962853467,5.20715,1920.5,1920.1,5.20789]
[1741962853760,0.7789,1920.6,1920.3,5.20749]
[1741962853927,0.7789,1920.6,1920.2,5.20776]
[1741962853928,5.98575,1920.6,1920.2,10.41537]
[1741962854128,5.98575,1920.6,1920.2,5.20761]
[1741962854337,5.207,1920.5,1920.1,5.20805]
[1741962854560,0.8266,1920.3,1919.6,6.589]
[1741962854762,6.03436,1920.3,1919.8,10.41748]
[1741962855066,0.8266,1920.3,1919.9,5.20842]
[1741962855363,0.8266,1920.3,1920.0,5.20826]
[1741962855522,0.8266,1920.3,1920.1,5.20801]
[1741962855733,0.8266,1920.3,1920.0,5.20821]
[1741962856128,0.8266,1920.3,1920.0,10.41643]
[1741962856449,0.8266,1920.3,1920.2,5.20779]
[1741962856633,0.8266,1920.3,1920.1,5.208]
[1741962856970,0.8266,1920.3,1920.2,5.20779]
[1741962857270,0.8266,1920.3,1920.0,6.249953]
[1741962857483,0.8266,1920.3,1920.1,5.20795]
[1741962857982,0.8266,1920.3,1920.0,5.20831]
[1741962858151,0.8266,1920.3,1920.1,5.20786]
[1741962858346,0.7717,1920.5,1920.3,5.20726]
[1741962858578,0.7717,1920.5,1919.9,5.20839]
[1741962858781,0.7717,1920.5,1920.2,5.20762]
[1741962858984,0.7717,1920.5,1920.4,5.20724]
[1741962859523,0.7979,1920.8,1920.4,0.05206813]
[1741962859640,0.7979,1920.8,1920.5,5.20679]
[1741962859945,6.00417,1920.8,1920.4,5.20711]
[1741962860263,0.7979,1920.8,1920.6,5.20658]
[1741962860440,0.7979,1920.8,1920.5,10.46560383]
[1741962860645,0.7979,1920.8,1920.6,5.20653]
[1741962860845,0.7979,1920.8,1920.7,5.20643]
[1741962861235,11.29501,1921.3,1920.7,5.20643]
[1741962861236,5.2052,1921.2,1920.7,5.20643]
[1741962861566,0.8221,1921.1,1920.9,5.20589]
[1741962861775,0.8221,1921.1,1920.4,5.20724]
[1741962861776,6.09,1921.3,1921.0,0.05205487]
[1741962861931,0.8221,1921.4,1921.1,5.20521]
[1741962862142,0.8221,1921.4,1921.0,5.20553]
[1741962862336,0.8221,1921.4,1921.1,5.20515]
[1741962862537,0.8221,1921.4,1921.3,5.2048]
[1741962863475,0.8221,1921.4,1921.2,5.205]
[1741962863868,6.02673,1921.4,1921.0,5.20553]
[1741962864045,0.8221,1921.4,1921.1,5.20531]
[1741962864245,0.8221,1921.4,1921.2,5.20507]